Cogmind - Beta 11.1 @@@ ROGUE MODE // 2022.05.02 @ 22:25:32 Player: Olga Result: Self-destructed Performance ------------- Evolutions (4) 2000 Regions Visited (9) 1800 Robots Destroyed (3) 15 Value Destroyed (30) 30 Prototype IDs (0) 0 Alien Tech Used (0) 0 Bonus (500) 500 TOTAL SCORE: 4345 Bonus ------- Entered DSFs 500 Cogmind --------- Core Integrity 835/850 Matter 0/300 Energy 98/100 System Corruption 8% Temperature Cool (4) Movement Flying (37) Location -6/Factory Parts ------- > --- POWER (1) -------- (None) > --- PROPULSION (4) --- Xenon Bombardment Thruster Xenon Bombardment Thruster > --- UTILITY (8) ------ Power Amplifier Small Storage Unit Hardened Light Armor Plating > --- WEAPON (2) ------- Mini Grenade Launcher > --- INVENTORY (8) ---- Light Fission Core Improved Surge Thruster Faulty Biomechanical Wings Advanced Sensor Array Advanced Terrain Scan Processor Advanced Terrain Scan Processor Advanced Terrain Scan Processor Advanced Terrain Scan Processor Peak State ------------ > --- POWER ------------ (None) > --- PROPULSION ------- Xenon Bombardment Thruster Xenon Bombardment Thruster Nuclear Pulse Thruster > --- UTILITY ---------- Power Amplifier Small Storage Unit Sensor Array Hardened Light Armor Plating > --- WEAPON ----------- Mini Grenade Launcher > --- INVENTORY -------- Fission Core Impulse Thruster Array Advanced Terrain Scan Processor Advanced Terrain Scan Processor Advanced Terrain Scan Processor Advanced Terrain Scan Processor Advanced Terrain Scan Processor [Rating: 28] Favorites ----------- Power Light Ion Engine Engine Light Ion Engine Power Core Fission Core Propulsion Xenon Bombardment Thruster Flight Unit Xenon Bombardment Thruster Utility Small Storage Unit Device Power Amplifier Storage Small Storage Unit Protection Hardened Light Armor Plating Weapon Mini Grenade Launcher Ballistic Gun Light Assault Rifle Launcher Mini Grenade Launcher Build | -11 -10 -10 -9 -8 -7 -7 -6 -6 -6 ------- Run | Scr Mat Min Mat Mat Fac DSF Fac Was Fac Slots Evolved 8 | . . . 2 2 2 . 2 . . Power . | . . . . . . . . . . Propulsion 2 | . . . 2 . . . . . . Utility 6 | . . . . 2 2 . 2 . . Weapon . | . . . . . . . . . . Parts Attached 24 | 2 6 1 6 1 . 1 7 . . Power 3 | . 1 . 1 . . . 1 . . Engine 2 | . 1 . 1 . . . . . . Core 1 | . . . . . . . 1 . . Reactor . | . . . . . . . . . . Propulsion 10 | . 2 . 4 1 . 1 2 . . Treads . | . . . . . . . . . . Leg . | . . . . . . . . . . Wheel . | . . . . . . . . . . Hover . | . . . . . . . . . . Flight 10 | . 2 . 4 1 . 1 2 . . Utility 8 | . 3 1 1 . . . 3 . . Device 5 | . 2 1 . . . . 2 . . Storage 1 | . 1 . . . . . . . . Processor . | . . . . . . . . . . Hackware . | . . . . . . . . . . Protection 2 | . . . 1 . . . 1 . . Artifact . | . . . . . . . . . . Weapon 3 | 2 . . . . . . 1 . . Energy Gun . | . . . . . . . . . . Energy Cannon . | . . . . . . . . . . Ballistic Gun 2 | 2 . . . . . . . . . Ballistic Cannon . | . . . . . . . . . . Launcher 1 | . . . . . . . 1 . . Special Weapon . | . . . . . . . . . . Impact Weapon . | . . . . . . . . . . Slashing Weapon . | . . . . . . . . . . Piercing Weapon . | . . . . . . . . . . Special Melee Weapon . | . . . . . . . . . . Unidentified Prototypes . | . . . . . . . . . . Parts Lost 7 | . . 1 2 2 . 2 . . . Power . | . . . . . . . . . . Propulsion 5 | . . . 1 2 . 2 . . . Utility 1 | . . . 1 . . . . . . Weapon 1 | . . 1 . . . . . . . Highest Loss Streak 2 | . . 1 2 2 . 2 . . . To Critical Strikes . | . . . . . . . . . . Average Slot Usage (%) 40 | . 45 71 68 39 23 19 30 53 40 Flight 16 | . 7 28 39 24 15 11 14 20 13 Device 6 | . 16 14 8 . . . 3 13 6 Storage 6 | . 2 14 11 9 7 7 6 6 6 Protection 3 | . . . 1 6 . . 2 6 6 Ballistic Gun 2 | . 18 14 . . . . . . . Launcher 2 | . . . . . . . 2 6 6 Naked Turns . | . . . . . . . . . . Heaviest Build 13 | 3 7 7 10 10 5 5 13 13 13 Greatest Support 18 | 3 8 8 16 12 8 8 18 18 18 Greatest Overweight (x) 1 | . . . . . . 1 . . 1 Average Overweight (x) . | . . . . . . . . . . Largest Inventory Capacity 8 | 5 8 8 8 8 8 8 8 8 8 Average Capacity 7 | 5 5 8 8 8 8 8 8 8 8 Most Carried 8 | 2 8 8 8 8 8 8 8 8 8 Average Carried 6 | 1 5 8 7 7 7 7 6 6 7 Final Capacity 8 | 5 8 8 8 8 8 8 8 8 8 Final Carried 8 | 2 8 8 8 7 8 8 6 8 8 Class Distribution -------------------- 92% | Mutant 7% | Scavenger-Sprinter Dominant Class ---------------- Mutant | -10/Materials Mutant | -10/Mines Scavenger-Sprinter | -9/Materials Mutant | -8/Materials Mutant | -7/Factory Mutant | -7/DSF Mutant | -6/Factory Mutant | -6/Waste Mutant | -6/Factory Resources | -11 -10 -10 -9 -8 -7 -7 -6 -6 -6 ----------- Run | Scr Mat Min Mat Mat Fac DSF Fac Was Fac Matter Collected 123 | 31 18 . . . . . 74 . . Remotely . | . . . . . . . . . . Salvage Created 48 | . 48 . . . . . . . . Parts 8 | . 8 . . . . . . . . Haulers Intercepted . | . . . . . . . . . . Recyclers Shooed . | . . . . . . . . . . Parts Field Recycled . | . . . . . . . . . . Retrieved Matter . | . . . . . . . . . . Parts Self-Destructed . | . . . . . . . . . . Prevented . | . . . . . . . . . . Kills | -11 -10 -10 -9 -8 -7 -7 -6 -6 -6 ------- Run | Scr Mat Min Mat Mat Fac DSF Fac Was Fac Combat Hostiles Destroyed 3 | . 3 . . . . . . . . Guns 3 | . 3 . . . . . . . . Classes Destroyed 1 | . 1 . . . . . . . . Swarmer 3 | . 3 . . . . . . . . Best Kill Streak 3 | . 3 . . . . . . . . Combat Bots Only 3 | . 3 . . . . . . . . Max Kills in Single Turn 1 | . 1 . . . . . . . . Gunslinging . | . . . . . . . . . . Exploded . | . . . . . . . . . . Melee . | . . . . . . . . . . Uniques/NPCs Destroyed . | . . . . . . . . . . Combat | -11 -10 -10 -9 -8 -7 -7 -6 -6 -6 -------- Run | Scr Mat Min Mat Mat Fac DSF Fac Was Fac Damage Taken 776 | . 219 95 105 70 32 165 80 . 10 Core 389 | . 125 73 20 44 32 80 15 . . Absorbed by Shields . | . . . . . . . . . . Core Remaining (%) 78 | 100 . 20 95 92 . 84 . . . Volleys Fired 14 | . 14 . . . . . . . . Largest 1 | . 1 . . . . . . . . Hottest 20 | . 20 . . . . . . . . Shots Fired 14 | . 14 . . . . . . . . Gun 14 | . 14 . . . . . . . . Cannon . | . . . . . . . . . . Launcher . | . . . . . . . . . . Special . | . . . . . . . . . . Kinetic 14 | . 14 . . . . . . . . Thermal . | . . . . . . . . . . Explosive . | . . . . . . . . . . Electromagnetic . | . . . . . . . . . . Robot Hit Streak 2 | . 2 . . . . . . . . Robot Miss Streak 5 | . 5 . . . . . . . . Penetration Max . | . . . . . . . . . . Secondary Targets . | . . . . . . . . . . Shots Hit Robots 5 | . 5 . . . . . . . . Core Hits 5 | . 5 . . . . . . . . Critical Kills . | . . . . . . . . . . Critical Parts Destroyed . | . . . . . . . . . . Critical Strikes . | . . . . . . . . . . Melee Attacks . | . . . . . . . . . . Impact . | . . . . . . . . . . Slashing . | . . . . . . . . . . Piercing . | . . . . . . . . . . Sneak Attacks . | . . . . . . . . . . Combat Hostiles . | . . . . . . . . . . Follow-up Attacks . | . . . . . . . . . . Damage Inflicted 67 | . 57 10 . . . . . . . Guns 57 | . 57 . . . . . . . . Cannons . | . . . . . . . . . . Explosions . | . . . . . . . . . . Melee . | . . . . . . . . . . Ramming 10 | . . 10 . . . . . . . Kinetic 57 | . 57 . . . . . . . . Thermal . | . . . . . . . . . . Explosive . | . . . . . . . . . . Electromagnetic . | . . . . . . . . . . Impact . | . . . . . . . . . . Slashing . | . . . . . . . . . . Piercing . | . . . . . . . . . . Highest Corruption 8 | . . . . . . . 1 7 8 Average Corruption 6 | . . . . . . . 1 5 7 Corruption Purged . | . . . . . . . . . . Corruption Blocked . | . . . . . . . . . . Effects 8 | . . . . . . . . 1 7 Message Errors 2 | . . . . . . . . . 2 Matter Fused 2 | . . . . . . . . 1 1 Heat Flow Errors 2 | . . . . . . . . . 2 Energy Discharges 1 | . . . . . . . . . 1 Data Loss (minor) 1 | . . . . . . . . . 1 Overload Shots . | . . . . . . . . . . Overflow Damage . | . . . . . . . . . . Projectiles . | . . . . . . . . . . Explosions . | . . . . . . . . . . Melee . | . . . . . . . . . . Knockbacks . | . . . . . . . . . . Impact . | . . . . . . . . . . Kinetic . | . . . . . . . . . . Secondary . | . . . . . . . . . . Self-Inflicted Damage 5 | . . 5 . . . . . . . Shots . | . . . . . . . . . . Rammed 1 | . . 1 . . . . . . . Targets Rammed 1 | . . 1 . . . . . . . Kicked . | . . . . . . . . . . Crushed . | . . . . . . . . . . Highest Temperature 124 | . . . 3 10 . . 1 . 124 Average Temperature 47 | . . . 3 8 . . 1 . 62 Received Heat Transfer 126 | . . . 33 72 12 . 9 . . Siege Activations . | . . . . . . . . . . Robots Corrupted . | . . . . . . . . . . Combat Hostiles . | . . . . . . . . . . Parts Fried . | . . . . . . . . . . Impact Corruptions . | . . . . . . . . . . Robots Melted . | . . . . . . . . . . Combat Hostiles . | . . . . . . . . . . Parts Melted . | . . . . . . . . . . Heat Transferred . | . . . . . . . . . . Parts Sabotaged . | . . . . . . . . . . Parts Stolen . | . . . . . . . . . . Parts Stripped . | . . . . . . . . . . Power Chain Reactions . | . . . . . . . . . . Missiles Intercepted . | . . . . . . . . . . Alert | -11 -10 -10 -9 -8 -7 -7 -6 -6 -6 ------- Run | Scr Mat Min Mat Mat Fac DSF Fac Was Fac Peak Influence 144 | . 101 39 56 42 54 41 40 44 144 Initial 41 | . . 39 11 21 9 41 10 14 30 Average 34 | . 43 38 27 24 31 27 18 37 48 Maximum Alert Level . | . . . . . . . . . . Low Security (%) 100 | 100 100 100 100 100 100 100 100 100 100 Level 1 . | . . . . . . . . . . Level 2 . | . . . . . . . . . . Level 3 . | . . . . . . . . . . Level 4 . | . . . . . . . . . . Level 5 . | . . . . . . . . . . High Security . | . . . . . . . . . . Max Security . | . . . . . . . . . . Squads Dispatched 4 | . . . 1 1 . . . . 2 Investigation 4 | . . . 1 1 . . . . 2 Extermination . | . . . . . . . . . . Reinforcement . | . . . . . . . . . . Assault . | . . . . . . . . . . Garrison . | . . . . . . . . . . Intercept . | . . . . . . . . . . Searches Triggered . | . . . . . . . . . . Construction Impeded . | . . . . . . . . . . Haulers Reinforced . | . . . . . . . . . . Active Scanning Responses . | . . . . . . . . . . Cargo Convoy Interrupts . | . . . . . . . . . . Stealth | -11 -10 -10 -9 -8 -7 -7 -6 -6 -6 --------- Run | Scr Mat Min Mat Mat Fac DSF Fac Was Fac Distress Signals 6 | . 2 . 3 . . . 1 . . Communications Jammed . | . . . . . . . . . . Distress Signals . | . . . . . . . . . . Times Spotted 41 | . 5 2 13 4 2 1 4 5 5 Peak Tracking Total 14 | . 5 2 14 5 2 1 3 5 4 Tactical Retreats 3 | . . . 1 . . . . . 2 Traps | -11 -10 -10 -9 -8 -7 -7 -6 -6 -6 ------- Run | Scr Mat Min Mat Mat Fac DSF Fac Was Fac Traps Triggered 4 | . . . 1 . . 1 2 . . Indirectly . | . . . . . . . . . . Trap Hack Attempts . | . . . . . . . . . . Triggered . | . . . . . . . . . . Disarmed . | . . . . . . . . . . Reprogrammed . | . . . . . . . . . . Reused . | . . . . . . . . . . Traps Extracted . | . . . . . . . . . . Installed . | . . . . . . . . . . Triggered . | . . . . . . . . . . Machines | -11 -10 -10 -9 -8 -7 -7 -6 -6 -6 ---------- Run | Scr Mat Min Mat Mat Fac DSF Fac Was Fac Machines Disabled . | . . . . . . . . . . Max in Single Turn . | . . . . . . . . . . Garrison Access 1 | . . . . . . . . . 1 Machines Sabotaged . | . . . . . . . . . . Garrisons Compromised . | . . . . . . . . . . Overloaded Fab Kills . | . . . . . . . . . . Hacking | -11 -10 -10 -9 -8 -7 -7 -6 -6 -6 --------- Run | Scr Mat Min Mat Mat Fac DSF Fac Was Fac Machines Accessed 10 | . 1 . 1 1 1 . . . 6 Terminals 9 | . 1 . 1 1 1 . . . 5 Fabricators . | . . . . . . . . . . Repair Stations . | . . . . . . . . . . Recycling Units . | . . . . . . . . . . Scanalyzers . | . . . . . . . . . . Garrison Access 1 | . . . . . . . . . 1 Total Hacks 21 | . 1 . 3 3 2 . . . 12 Successful 8 | . 1 . 1 1 1 . . . 4 Failed 13 | . . . 2 2 1 . . . 8 Catastrophic 3 | . . . . . . . . . 3 Database Lockouts . | . . . . . . . . . . Manual 8 | . . . . 3 . . . . 5 Terminals 20 | . 1 . 3 3 2 . . . 11 Fabricators . | . . . . . . . . . . Repair Stations . | . . . . . . . . . . Recycling Units . | . . . . . . . . . . Scanalyzers . | . . . . . . . . . . Garrison Access 1 | . . . . . . . . . 1 Terminal Hacks 6 | . 1 . 1 1 1 . . . 2 Open DSF 2 | . . . . . 1 . . . 1 Branch Access Points 1 | . 1 . . . . . . . . Terminal Index 3 | . . . 1 1 . . . . 1 Fabricator Hacks . | . . . . . . . . . . Repair Station Hacks . | . . . . . . . . . . Recycling Unit Hacks . | . . . . . . . . . . Scanalyzer . | . . . . . . . . . . Garrison Access Hacks 1 | . . . . . . . . . 1 Seal Access 1 | . . . . . . . . . 1 Unauthorized Hacks 1 | . . . . . . . . . 1 Terminals 1 | . . . . . . . . . 1 Botnet 1 | . . . . . . . . . 1 Fabricators . | . . . . . . . . . . Repair Stations . | . . . . . . . . . . Recycling Units . | . . . . . . . . . . Scanalyzers . | . . . . . . . . . . Garrison Access . | . . . . . . . . . . Data Cores Recovered . | . . . . . . . . . . Used . | . . . . . . . . . . Hacking Detections 8 | . 1 . 1 1 . . . . 5 Full Trace Events 4 | . . . 1 1 . . . . 2 Feedback Events 1 | . . . . . . . . . 1 Corruption 1 | . . . . . . . . . 1 Feedback Blocked . | . . . . . . . . . . Robot Schematics Acquired . | . . . . . . . . . . Robots Built . | . . . . . . . . . . Authchips . | . . . . . . . . . . Time . | . . . . . . . . . . Total Robot Build Rating . | . . . . . . . . . . Part Schematics Acquired . | . . . . . . . . . . Parts Built . | . . . . . . . . . . Authchips . | . . . . . . . . . . Time . | . . . . . . . . . . Total Part Build Rating . | . . . . . . . . . . Parts Repaired . | . . . . . . . . . . Time . | . . . . . . . . . . Parts Recycled . | . . . . . . . . . . Recycled Matter . | . . . . . . . . . . Retrieved Matter . | . . . . . . . . . . Retrieved Components . | . . . . . . . . . . Parts Scanalyzed . | . . . . . . . . . . Part Schematics Acquired . | . . . . . . . . . . Parts Damaged . | . . . . . . . . . . Bothacking | -11 -10 -10 -9 -8 -7 -7 -6 -6 -6 ------------ Run | Scr Mat Min Mat Mat Fac DSF Fac Was Fac Used RIF Installer . | . . . . . . . . . . Robots Hacked . | . . . . . . . . . . Non-combat . | . . . . . . . . . . Combat . | . . . . . . . . . . Robot Hacks Applied . | . . . . . . . . . . Relay Couplers Released . | . . . . . . . . . . Fabnet Peak Effective % . | . . . . . . . . . . Robots Rewired . | . . . . . . . . . . Allies Hacked . | . . . . . . . . . . Hacks Repelled . | . . . . . . . . . . Allies | -11 -10 -10 -9 -8 -7 -7 -6 -6 -6 -------- Run | Scr Mat Min Mat Mat Fac DSF Fac Was Fac Total Allies . | . . . . . . . . . . Largest Group . | . . . . . . . . . . Highest-Rated Group . | . . . . . . . . . . Highest-Rated Ally . | . . . . . . . . . . Total Orders . | . . . . . . . . . . Ally Attacks . | . . . . . . . . . . Total Damage . | . . . . . . . . . . Kills . | . . . . . . . . . . Allies Corrupted . | . . . . . . . . . . Allies Melted . | . . . . . . . . . . Intel | -11 -10 -10 -9 -8 -7 -7 -6 -6 -6 ------- Run | Scr Mat Min Mat Mat Fac DSF Fac Was Fac Robot Analysis Total . | . . . . . . . . . . Derelict Logs Recovered . | . . . . . . . . . . Drone Launches . | . . . . . . . . . . Drone Recoveries . | . . . . . . . . . . Exploration | -11 -10 -10 -9 -8 -7 -7 -6 -6 -6 ------------- Run | Scr Mat Min Mat Mat Fac DSF Fac Was Fac Turns Passed 889 | 17 96 31 77 32 63 42 204 46 281 Spaces Moved 2086 | 24 121 78 194 87 162 84 466 131 739 Core 100 | 24 75 . . . . 1 . . . Treads . | . . . . . . . . . . Legs . | . . . . . . . . . . Wheels . | . . . . . . . . . . Hover . | . . . . . . . . . . Flight 1986 | . 46 78 194 87 162 83 466 131 739 Fastest Speed 31 | 50 37 37 31 34 37 37 34 34 34 Average Speed 36 | 50 45 37 31 34 37 40 36 34 37 Slowest Speed 117 | 50 50 37 34 37 37 100 40 34 117 Overloaded Moves . | . . . . . . . . . . Propulsion Burnouts . | . . . . . . . . . . Robots Hopped 28 | . . 1 2 3 . 2 12 . 8 Cave-ins Triggered . | . . . . . . . . . . Exploration Rate (%) 30 | 3 26 26 38 14 6 86 14 70 22 Regions Visited 9 Branch Regions 1 Pre-discovered Areas . | . . . . . . . . . . Known Exits Taken 2 | . 1 . . . 1 . . . . Unknown Exits Taken 4 | 1 . 1 1 1 . . . . . Scrap Searched . | . . . . . . . . . . Spaces Dug . | . . . . . . . . . . Terrain Destroyed . | . . . . . . . . . . Melee . | . . . . . . . . . . Projectile . | . . . . . . . . . . AOE . | . . . . . . . . . . Terrain Rammed . | . . . . . . . . . . Walls Destroyed . | . . . . . . . . . . Machines Disabled . | . . . . . . . . . . Actions | -11 -10 -10 -9 -8 -7 -7 -6 -6 -6 --------- Run | Scr Mat Min Mat Mat Fac DSF Fac Was Fac Total 2159 | 27 148 78 207 86 164 92 486 131 740 Wait 2 | . . . 2 . . . . . . Move 2027 | 23 120 76 189 81 161 79 445 130 723 Hop 24 | . . 1 2 2 . 2 9 . 8 Pick Up 28 | 2 6 . 5 . 2 5 3 1 4 Fast Attach 13 | 2 5 . 1 . . 1 4 . . Attach 8 | . . . 4 1 . . 3 . . Detach 2 | . . . . 1 . . 1 . . Swap 3 | . 1 1 1 . . . . . . Drop 20 | . 2 . 3 1 1 5 3 . 5 Fire 14 | . 14 . . . . . . . . Melee . | . . . . . . . . . . Ram . | . . . . . . . . . . Kick . | . . . . . . . . . . Crush . | . . . . . . . . . . Escape Stasis 18 | . . . . . . . 18 . . Rewire . | . . . . . . . . . . Trap . | . . . . . . . . . . Miscellaneous . | . . . . . . . . . . Route ------- -11/Scrapyard -10/Materials (discovered 2 exits: *Min x2) -10/Mines -9/Materials (discovered 2 exits: *Mat / [*Min]) -8/Materials -7/Factory -7/DSF -6/Factory -6/Waste -6/Factory History --------- Turn | Location | Event 12 | -11/Scrapyard | Discovered new exit (range 14) 18 | -11/Scrapyard | Entered Materials 55 | -10/Materials | Identified exit to Mines 114 | -10/Materials | Entered Mines 139 | -10/Mines | Assembled infested the area 141 | -10/Mines | Discovered new exit (range 11) 143 | -10/Mines | Core integrity fell below 50% 145 | -10/Mines | Entered Materials 145 | -9/Materials | Evolved 2 slots: Propulsion x2 194 | -9/Materials | Discovered new exit (range 13) 218 | -9/Materials | Discovered new exit (range 11) 222 | -9/Materials | Entered another Materials area 222 | -8/Materials | Evolved 2 slots: Utility x2 252 | -8/Materials | Discovered new exit (range 7) 254 | -8/Materials | Entered Factory 254 | -7/Factory | Evolved 2 slots: Utility x2 317 | -7/Factory | Identified exit to DSF 317 | -7/Factory | Entered DSF 345 | -7/DSF | Additional patrols routed to DSF 351 | -7/DSF | Discovered new exit (range 14) 359 | -7/DSF | Entered Factory 359 | -6/Factory | Evolved 2 slots: Utility x2 516 | -6/Factory | Build established: Mutant 563 | -6/Factory | Sucked down chute 563 | -6/Factory | Entered Waste 570 | -6/Waste | Spotted C-40 Crusher 573 | -6/Waste | Spotted C-40 Crusher 574 | -6/Waste | Spotted C-40 Crusher 575 | -6/Waste | Spotted C-40 Crusher 578 | -6/Waste | EMP discharged 589 | -6/Waste | Spotted C-40 Crusher 595 | -6/Waste | Discovered new exit (range 12) 609 | -6/Waste | Entered Factory 890 | -6/Factory | Self-destructed Last Messages --------------- 00781_ K-01 Serf collects debris. 00786_ PPBQUKHFCPVLDG&4T1|QYGCSFW9C0JYR5TUW| 00807_ System corrupted: Component data lost. 00817_ Connecting with DSF Access... 00817_ ALERT: Suspicious activity at Terminal F026. Dispatching Investigation squad. 00820_ Connecting with Terminal... >>Trojan(Botnet) Trojan loaded successfully. Testing... Terminal linked with 0 systems. Awaiting botnet instructions. 00824_ ALERT: All DSF locations entering lockdown mode. 00829_ System corrupted: Matter fused (-1). 00865_ Connecting with DSF Access... 00882_ O-24 Administrator: "IFF HANDSHAKE FAILED. SECURING TERMINAL." 00887_ Connecting with Terminal... Feedback: System corruption (+1%). 00887_ ALERT: Suspicious activity at Terminal F010. Dispatching Investigation squad. Map ----- +----------------------------------------------------+ | + + """" + # "?????? | | # # """" ### # ""????? | | # + """" #?# # """???? | | ?# # """" !#?# # ??? | | ?# # #?# # """"" # | | ??# # [ #?# # """"" # | | ??# ##########?# # """ ? | | ???# #??????????# #* ? | | ####???# #??????????# # """"" # | | ???????# #??????????# # """"" # | | ???????# #??????????# + """ # | | ???????? ???????????# # =# | | ???????? ??????????## ###+#####? | | ???????? ??????????# ## #????? | | ???????? ??????????# #????? | | ???????? ??????????# ## #????? | | ???????? ??????????# ##+###### | | ???????? ??????????#/ # # | | ???????????????????### ### "" # | | ?????????????????????# ??# """ # | | ?????????????????????# ??# "T # | | ?????????????????????# ??# """o # | | ?????????????????????# ??# "" " # | | ?????????????######### ### " # | | ?????????? # " # | | ?????????? @ " # | | ?????????? # " # | | ?????????????######## # " # | | ????????????????????# ?# !! " # | | ????????????????????# ?# !! " # | | ????????????????????# ??# !! " # | | ????????????????????+ ??+ # | | ????????????????????# ???# # | | ?###########????????# ???# # | | ?# #????????#????######### | | ##*!= #?????????????????????? | | + #?????????????????????? | | ## """ #?????????????????????? | | ?# """"" #?????????????????????? | | ?# """"" +?????????????????????? | | ?# #?????????????????????? | | ?# """ #?????????????????????? | | # """"" #?????????????????????? | | # """"" #?????????????????????? | | # #?????????????????????? | | # """#?????????????????????? | | # [ """#?????????????????????? | | # R"#?????????????????????? | | # """#?????????????????????? | | # #?????????????????????? | +----------------------------------------------------+ Best States ------------- Heat Dissipation 37 Energy Generation 10 Energy Capacity 125 Matter Stores 111 Matter Capacity 300 Sight Range 16 Robot Scan Range 14 Terrain Scan Density 10 Power Amplification 20 Armor Coverage 150 Evasion (%) 63 Item Schematics ----------------- None Robot Schematics ------------------ None Fabricated ------------ Nothing Alien Tech Used ----------------- None Achievements -------------- None Challenges ------------ None Game ------ Seed LatentGravmagBay Manual? 0 Play Time 00:23:17 Cumulative 165.7 hours Start 2022.05.02 @ 22:04:38 End 2022.05.02 @ 22:25:32 Sessions 1 Manual Loads 0 Difficulty Rogue Special Mode None Game No. 273 Rogue 272 Adventurer 0 Explorer 1 Win Type - Total 7 Types 7/0/0/0/0/0/0/0/0 Lore% 61 Gallery% 63 Achievement% 53 Wizard Run 0 Options --------- ASCII 1 Keyboard 0 Movement Vi Keybinds 0 Fullscreen 1 Font 18/SmallcapsGlow Map View 76x50 Tactical HUD 1 Map Filters NONE Filters NONE Steam 1 RUN: e970f88c-0e02-4de3-a24e-3c60d4312bdb